fUST/lending_fUST_20260118
["ID","MTS","AMOUNT","RATE_DAILY","PERIOD"]
[402496571,1768687848704,-500.0,0.00016438,3]
[402496573,1768687848713,-500.0,0.00016438,3]
[402496576,1768687848723,-500.0,0.00016438,3]
[402496578,1768687848733,-807.96,0.00016438,3]
[402496579,1768687848744,-500.0,0.00016438,3]
[402496582,1768687848755,-500.0,0.00016438,3]
[402496583,1768687848764,-1012.92,0.00016438,3]
[402496586,1768687848775,-500.0,0.00016438,3]
[402496587,1768687848784,-500.0,0.00016438,3]
[402496590,1768687848794,-500.0,0.00016438,3]
[402496591,1768687848804,-521.12,0.00016438,3]
[402496593,1768687848814,-314.193541,0.00016438,7]
[402496595,1768687848826,-500.0,0.00016438,3]
[402496597,1768687848837,-500.0,0.00016438,3]
[402496599,1768687848846,-500.0,0.00016438,3]
[402496601,1768687848857,-500.0,0.00016438,3]
[402496603,1768687848866,-532.59,0.00016438,3]
[402496605,1768687848876,-500.0,0.00016438,3]
[402496607,1768687848887,-536.50517922,0.00016438,3]
[402496609,1768687848897,-500.0,0.00016438,3]
[402496611,1768687848906,-500.0,0.00016438,3]
[402496613,1768687848916,-500.0,0.00016438,3]
[402496615,1768687848925,-500.0,0.00016438,3]
[402496617,1768687848935,-500.0,0.00016438,3]
[402496618,1768687848944,-500.0,0.00016438,3]
[402496620,1768687848953,-500.0,0.00016438,3]
[402496622,1768687848963,-500.0,0.00016438,3]
[402496624,1768687848973,-532.04,0.00016438,3]
[402496626,1768687848983,-500.0,0.00016438,3]
[402496628,1768687848993,-500.0,0.00016438,3]
[402496630,1768687849004,-500.0,0.00016438,3]
[402496632,1768687849015,-524.35,0.00016438,3]
[402496634,1768687849024,-766.89,0.00016438,3]
[402496636,1768687849033,-613.61,0.00016438,3]
[402496637,1768687849042,-500.0,0.00016438,3]
[402496638,1768687849051,-500.0,0.00016438,3]
[402496639,1768687849060,-1247.55,0.00016438,3]
[402496640,1768687849070,-500.0,0.00016438,3]
[402496641,1768687849079,-500.0,0.00016438,3]
[402496642,1768687849088,-500.0,0.00016438,3]
[402496643,1768687849097,-500.0,0.00016438,3]
[402496644,1768687849106,-500.0,0.00016438,3]
[402496645,1768687849115,-500.0,0.00016438,3]
[402496646,1768687849124,-687.66,0.00016438,3]
[402496647,1768687849134,-500.0,0.00016438,3]
[402496648,1768687849143,-500.0,0.00016438,3]
[402496649,1768687849152,-537.66,0.00016438,3]
[402496650,1768687849161,-500.0,0.00016438,3]
[402496651,1768687849170,-500.0,0.00016438,3]
[402496652,1768687849179,-500.0,0.00016438,3]
[402496653,1768687849188,-500.0,0.00016438,3]
[402496654,1768687849197,-500.0,0.00016438,3]
[402496655,1768687849205,-500.0,0.00016438,3]
[402496656,1768687849215,-758.32,0.00016438,3]
[402496657,1768687849225,-500.0,0.00016438,3]
[402496658,1768687849234,-500.0,0.00016438,3]
[402496659,1768687849243,-500.0,0.00016438,3]
[402496660,1768687849255,-500.0,0.00016438,3]
[402496661,1768687849264,-500.0,0.00016438,3]
[402496662,1768687849273,-500.0,0.00016438,3]
[402496663,1768687849282,-678.19,0.00016438,3]
[402496665,1768687849291,-863.31,0.00016438,3]
[402496666,1768687849303,-500.0,0.00016438,3]
[402496667,1768687849313,-500.0,0.00016438,3]
[402496669,1768687849323,-821.84,0.00016438,3]
[402496671,1768687849332,-500.0,0.00016438,3]
[402496673,1768687849342,-500.0,0.00016438,3]
[402496675,1768687849351,-500.0,0.00016438,3]
[402496677,1768687849360,-523.99827377,0.00016438,3]
[402496679,1768687849369,-739.07,0.00016438,3]
[402496681,1768687849379,-500.0,0.00016438,3]
[402496683,1768687849389,-500.0,0.00016438,3]
[402496685,1768687849398,-500.0,0.00016438,3]
[402496687,1768687849407,-500.0,0.00016438,3]
[402496689,1768687849417,-500.0,0.00016438,3]
[402496691,1768687849426,-500.0,0.00016438,3]
[402496693,1768687849435,-500.0,0.00016438,3]
[402496695,1768687849445,-500.0,0.00016438,3]
[402496697,1768687849455,-622.64063856,0.00016438,3]
[402496699,1768687849464,-882.76,0.00016438,3]
[402496701,1768687849474,-500.0,0.00016438,3]
[402496703,1768687849483,-500.0,0.00016438,3]
[402496705,1768687849492,-500.0,0.00016438,3]
[402496707,1768687849502,-897.36,0.00016438,3]
[402496709,1768687849510,-761.62,0.00016438,3]
[402496710,1768687849520,-500.0,0.00016438,3]
[402496712,1768687849530,-607.12,0.00016438,3]
[402496714,1768687849539,-500.0,0.00016438,3]
[402496716,1768687849548,-1200.0,0.00016438,2]
[402496718,1768687849558,-500.0,0.00016438,3]
[402496720,1768687849567,-1989.94,0.00016438,3]
[402496722,1768687849576,-500.0,0.00016438,3]
[402496724,1768687849585,-1114.36,0.00016438,3]
[402496726,1768687849594,-586.42,0.00016438,3]
[402496728,1768687849604,-269.65,0.00016438,2]
[402496730,1768687849614,-500.0,0.00016438,3]
[402496732,1768687849624,-1486.78,0.00016438,3]
[402496734,1768687849633,-500.0,0.00016438,3]
[402496735,1768687849642,-500.0,0.00016438,3]
[402496737,1768687849651,-500.0,0.00016438,3]
[402496740,1768687849661,-500.0,0.00016438,3]
[402496741,1768687849671,-500.0,0.00016438,3]
[402496743,1768687849680,-500.0,0.00016438,3]
[402496745,1768687849691,-500.0,0.00016438,3]
[402496747,1768687849700,-500.0,0.00016438,3]
[402496749,1768687849709,-1333.62,0.00016438,3]
[402496751,1768687849718,-500.0,0.00016438,3]
[402496753,1768687849728,-500.0,0.00016438,3]
[402496755,1768687849737,-500.0,0.00016438,3]
[402496757,1768687849747,-671.96,0.00016438,3]
[402496759,1768687849756,-532.55606123,0.00016438,3]
[402496762,1768687849766,-500.0,0.00016438,3]
[402496763,1768687849775,-500.0,0.00016438,3]
[402496766,1768687849786,-565.59190615,0.00016438,3]
[402496767,1768687849796,-500.0,0.00016438,3]
[402496769,1768687849805,-500.0,0.00016438,3]
[402496771,1768687849816,-500.0,0.00016438,3]
[402496773,1768687849825,-500.0,0.00016438,3]
[402496775,1768687849834,-500.0,0.00016438,3]
[402496777,1768687849844,-500.0,0.00016438,3]
[402496779,1768687849853,-500.0,0.00016438,3]
[402496781,1768687849862,-500.0,0.00016438,3]
[402496783,1768687849871,-500.0,0.00016438,3]
[402496785,1768687849880,-500.0,0.00016438,3]
[402496787,1768687849890,-1719.73,0.00016438,3]
[402496789,1768687849898,-1057.83,0.00016438,3]
[402496791,1768687849908,-500.0,0.00016438,3]
[402496793,1768687849919,-500.0,0.00016438,3]
[402496795,1768687849928,-500.0,0.00016438,3]
[402496797,1768687849937,-957.61,0.00016438,3]
[402496798,1768687849946,-540.01468021,0.00016438,3]
[402496800,1768687849955,-500.0,0.00016438,3]
[402496802,1768687849966,-500.0,0.00016438,3]
[402496804,1768687849976,-500.0,0.00016438,3]
[402496807,1768687849987,-500.0,0.00016438,3]
[402496808,1768687849997,-500.0,0.00016438,3]
[402496810,1768687850007,-500.0,0.00016438,3]
[402496812,1768687850016,-500.0,0.00016438,3]
[402496814,1768687850026,-500.0,0.00016438,3]
[402496816,1768687850035,-500.0,0.00016438,3]
[402496818,1768687850044,-500.0,0.00016438,3]
[402496820,1768687850054,-500.0,0.00016438,3]
[402496822,1768687850063,-500.0,0.00016438,3]
[402496824,1768687850072,-1633.97,0.00016438,3]
[402496826,1768687850081,-500.0,0.00016438,3]
[402496828,1768687850091,-500.0,0.00016438,3]
[402496830,1768687850101,-500.0,0.00016438,3]
[402496832,1768687850111,-500.0,0.00016438,3]
[402496834,1768687850120,-500.0,0.00016438,3]
[402496836,1768687850129,-500.0,0.00016438,3]
[402496838,1768687850139,-500.0,0.00016438,3]
[402496840,1768687850148,-500.0,0.00016438,3]
[402496842,1768687850158,-500.0,0.00016438,3]
[402496844,1768687850167,-1067.5,0.00016438,3]
[402496846,1768687850176,-533.67555497,0.00016438,3]
[402496848,1768687850186,-500.0,0.00016438,3]
[402496850,1768687850196,-606.11,0.00016438,3]
[402496852,1768687850205,-500.0,0.00016438,3]
[402496854,1768687850215,-500.0,0.00016438,3]
[402496856,1768687850225,-500.0,0.00016438,3]
[402496858,1768687850234,-500.0,0.00016438,3]
[402496860,1768687850243,-1013.32,0.00016438,3]
[402496862,1768687850257,-500.0,0.00016438,3]
[402496864,1768687850267,-1013.54,0.00016438,3]
[402496866,1768687850276,-1271.98,0.00016438,3]
[402496868,1768687850286,-500.0,0.00016438,3]
[402496870,1768687850295,-500.0,0.00016438,3]
[402496872,1768687850305,-1113.15,0.00016438,3]
[402496873,1768687850314,-500.0,0.00016438,3]
[402496875,1768687850326,-500.0,0.00016438,3]
[402496878,1768687850337,-517.45,0.00016438,3]
[402496879,1768687850346,-500.0,0.00016438,3]
[402496882,1768687850357,-500.0,0.00016438,3]
[402496884,1768687850366,-1191.65,0.00016438,3]
[402496886,1768687850376,-774.82,0.00016438,3]
[402496888,1768687850386,-500.0,0.00016438,3]
[402496890,1768687850397,-500.0,0.00016438,3]
[402496892,1768687850407,-500.0,0.00016438,3]
[402496894,1768687850421,-500.0,0.00016438,3]
[402496896,1768687850435,-500.0,0.00016438,3]
[402496898,1768687850444,-500.0,0.00016438,3]
[402496900,1768687850454,-500.0,0.00016438,3]
[402496902,1768687850463,-500.0,0.00016438,3]
[402496904,1768687850472,-500.0,0.00016438,3]
[402496906,1768687850482,-500.0,0.00016438,3]
[402496908,1768687850492,-852.94,0.00016438,3]
[402496909,1768687850501,-500.0,0.00016438,3]
[402496912,1768687850511,-979.47,0.00016438,3]
[402496913,1768687850520,-500.0,0.00016438,3]
[402496915,1768687850529,-500.0,0.00016438,3]
[402496917,1768687850539,-526.3812206,0.00016438,3]
[402496919,1768687850548,-500.0,0.00016438,3]
[402496921,1768687850558,-211.62283602,0.00016438,3]
[402496923,1768687850567,-500.0,0.00016438,3]
[402496925,1768687850577,-500.0,0.00016438,3]
[402496927,1768687850587,-500.0,0.00016438,3]
[402496929,1768687850596,-500.0,0.00016438,3]
[402496931,1768687850607,-618.02349392,0.00016438,3]
[402496933,1768687850616,-500.0,0.00016438,3]
[402496935,1768687850626,-645.0,0.00016438,3]
[402496937,1768687850635,-503.06859357,0.00016438,3]
[402496939,1768687850644,-500.0,0.00016438,3]
[402496941,1768687850653,-500.0,0.00016438,3]
[402496943,1768687850663,-759.34,0.00016438,3]
[402496945,1768687850672,-500.0,0.00016438,3]
[402496947,1768687850682,-596.26,0.00016438,3]
[402496949,1768687850691,-850.48,0.00016438,3]
[402496951,1768687850701,-869.35,0.00016438,3]
[402496953,1768687850710,-500.0,0.00016438,3]
[402496955,1768687850720,-500.0,0.00016438,3]
[402496957,1768687850729,-500.0,0.00016438,3]
[402496959,1768687850739,-500.0,0.00016438,3]
[402496961,1768687850748,-500.0,0.00016438,3]
[402496963,1768687850758,-500.0,0.00016438,3]
[402496965,1768687850768,-500.0,0.00016438,3]
[402496967,1768687850777,-531.28,0.00016438,3]
[402496970,1768687850787,-1306.9,0.00016438,3]
[402496972,1768687850797,-500.0,0.00016438,3]
[402496974,1768687850809,-500.0,0.00016438,3]
[402496975,1768687850818,-500.0,0.00016438,3]
[402496978,1768687850828,-787.56,0.00016438,3]
[402496980,1768687850837,-435.20636976,0.00016438,3]
[402496982,1768687850847,-1173.43,0.00016438,3]
[402496984,1768687850856,-675.39,0.00016438,3]
[402496986,1768687850866,-500.0,0.00016438,3]
[402496987,1768687850875,-500.0,0.00016438,3]
[402496990,1768687850885,-560.03,0.00016438,3]
[402496992,1768687850895,-1769.73,0.00016438,3]
[402496994,1768687850905,-996.38,0.00016438,3]
[402496996,1768687850916,-500.0,0.00016438,3]
[402496998,1768687850925,-450.64316952,0.00016438,3]
[402497000,1768687850935,-543.61913102,0.00016438,3]
[402497002,1768687850944,-500.0,0.00016438,3]
[402497004,1768687850953,-500.0,0.00016438,3]
[402497006,1768687850963,-513.00114578,0.00016438,3]
[402497008,1768687850974,-526.17897158,0.00016438,3]
[402497010,1768687850983,-1506.64,0.00016438,3]
[402497012,1768687850993,-500.0,0.00016438,3]
[402497014,1768687851003,-500.0,0.00016438,3]
[402497016,1768687851014,-500.0,0.00016438,3]
[402497018,1768687851024,-246.0,0.00016438,3]
[402497019,1768687851033,-500.0,0.00016438,3]
[402497022,1768687851044,-151.0,0.00016438,2]
[402497023,1768687851054,-151.0,0.00016438,2]
[402497026,1768687851064,-500.0,0.00016438,3]
[402497027,1768687851074,-718.09,0.00016438,3]
[402497029,1768687851084,-151.0,0.00016438,2]
[402497032,1768687851094,-603.28,0.00016438,3]
[402497034,1768687851103,-151.0,0.00016438,2]
[402497036,1768687851119,-151.0,0.00016438,2]
[402497038,1768687851129,-298.75076,0.00016438,2]
[402497040,1768687851139,-500.0,0.00016438,3]
[402497042,1768687851148,-500.0,0.00016438,3]
[402497044,1768687851159,-500.0,0.00016438,3]
[402497046,1768687851168,-500.0,0.00016438,3]
[402497048,1768687851178,-500.0,0.00016438,3]
[402497050,1768687851188,-569.91,0.00016438,3]
[402497052,1768687851197,-1228.38,0.00016438,3]
[402497054,1768687851207,-1070.22,0.00016438,3]
[402497056,1768687851217,-500.0,0.00016438,3]
[402497058,1768687851227,-500.0,0.00016438,3]
[402497060,1768687851237,-500.0,0.00016438,3]
[402497062,1768687851253,-500.0,0.00016438,3]
[402497064,1768687851264,-500.0,0.00016438,3]
[402497066,1768687851274,-500.0,0.00016438,3]
[402497068,1768687851284,-500.0,0.00016438,3]
[402497070,1768687851295,-500.0,0.00016438,3]
[402497072,1768687851305,-632.36,0.00016438,3]
[402497074,1768687851315,-500.0,0.00016438,3]
[402497076,1768687851326,-500.0,0.00016438,3]
[402497078,1768687851336,-1958.41,0.00016438,3]
[402497080,1768687851345,-500.0,0.00016438,3]
[402497082,1768687851355,-281.96847602,0.00016438,3]
[402497084,1768687851365,-1576.41,0.00016438,3]
[402497087,1768687851375,-500.0,0.00016438,3]
[402497089,1768687851387,-500.0,0.00016438,3]
[402497091,1768687851397,-693.96,0.00016438,3]
[402497093,1768687851407,-500.0,0.00016438,3]
[402497095,1768687851416,-500.0,0.00016438,3]
[402497097,1768687851426,-1211.78,0.00016438,3]
[402497099,1768687851435,-500.0,0.00016438,3]
[402497101,1768687851445,-500.0,0.00016438,3]
[402497103,1768687851455,-500.0,0.00016438,3]
[402497105,1768687851464,-500.0,0.00016438,3]
[402497107,1768687851474,-1318.01,0.00016438,3]
[402497109,1768687851483,-500.0,0.00016438,3]
[402497111,1768687851492,-500.0,0.00016438,3]
[402497113,1768687851502,-500.0,0.00016438,3]
[402497115,1768687851511,-6092.67,0.00016438,3]
[402497116,1768687851521,-951.59,0.00016438,3]
[402497117,1768687851531,-500.0,0.00016438,3]
[402497118,1768687851541,-500.0,0.00016438,3]
[402497119,1768687851550,-500.0,0.00016438,3]
[402497120,1768687851560,-500.0,0.00016438,3]
[402497121,1768687851569,-500.0,0.00016438,3]
[402497122,1768687851579,-500.0,0.00016438,3]
[402497123,1768687851589,-631.39,0.00016438,3]
[402497124,1768687851598,-909.25,0.00016438,3]
[402497125,1768687851611,-183.73779352,0.00016438,3]
[402497126,1768687851621,-500.0,0.00016438,3]
[402497127,1768687851631,-922.41,0.00016438,3]
[402497128,1768687851640,-565.89,0.00016438,3]
[402497129,1768687851650,-685.26,0.00016438,3]
[402497130,1768687851660,-1783.16,0.00016438,3]
[402497131,1768687851670,-609.19,0.00016438,3]
[402497132,1768687851680,-500.0,0.00016438,3]
[402497133,1768687851690,-500.0,0.00016438,3]
[402497134,1768687851700,-500.0,0.00016438,3]
[402497135,1768687851710,-500.0,0.00016438,3]
[402497136,1768687851720,-500.0,0.00016438,3]
[402497137,1768687851730,-500.0,0.00016438,3]
[402497138,1768687851740,-500.0,0.00016438,3]
[402497139,1768687851750,-598.89865208,0.00016438,3]
[402497140,1768687851760,-500.0,0.00016438,3]
[402497141,1768687851770,-1815.02,0.00016438,3]
[402497142,1768687851780,-822.5,0.00016438,3]
[402497143,1768687851791,-743.48,0.00016438,3]
[402497144,1768687851801,-575.2,0.00016438,3]
[402497145,1768687851811,-500.0,0.00016438,3]
[402497146,1768687851821,-500.0,0.00016438,3]
[402497147,1768687851831,-500.0,0.00016438,2]
[402497148,1768687851841,-500.0,0.00016438,3]
[402497149,1768687851850,-500.0,0.00016438,3]
[402497150,1768687851860,-500.0,0.00016438,3]
[402497151,1768687851870,-500.0,0.00016438,3]
[402497152,1768687851880,-500.0,0.00016438,3]
[402497154,1768687851891,-500.0,0.00016438,3]
[402497156,1768687851901,-500.0,0.00016438,3]
[402497158,1768687851911,-500.0,0.00016438,3]
[402497160,1768687851921,-500.0,0.00016438,3]
[402497162,1768687851931,-500.0,0.00016438,3]
[402497164,1768687851943,-500.0,0.00016438,3]
[402497167,1768687851953,-500.0,0.00016438,3]
[402497169,1768687851963,-1254.24,0.00016438,3]
[402497171,1768687851972,-500.0,0.00016438,3]
[402497173,1768687851982,-500.0,0.00016438,3]
[402497175,1768687851994,-500.0,0.00016438,3]
[402497177,1768687852004,-500.0,0.00016438,3]
[402497179,1768687852014,-500.0,0.00016438,3]
[402497181,1768687852024,-1274.41,0.00016438,3]
[402497183,1768687852035,-836.42,0.00016438,3]
[402497185,1768687852044,-500.0,0.00016438,3]
[402497187,1768687852054,-500.0,0.00016438,3]
[402497189,1768687852063,-500.0,0.00016438,3]
[402497191,1768687852073,-545.8035631,0.00016438,3]
[402497193,1768687852083,-572.18,0.00016438,3]
[402497195,1768687852093,-2760.78,0.00016438,3]
[402497197,1768687852103,-638.05,0.00016438,3]
[402497199,1768687852113,-500.0,0.00016438,3]
[402497201,1768687852122,-532.33,0.00016438,3]
[402497203,1768687852132,-500.0,0.00016438,3]
[402497205,1768687852142,-500.0,0.00016438,3]
[402497207,1768687852152,-500.0,0.00016438,3]
[402497209,1768687852162,-500.0,0.00016438,3]
[402497211,1768687852171,-500.0,0.00016438,3]
[402497213,1768687852181,-500.0,0.00016438,3]
[402497215,1768687852192,-500.0,0.00016438,3]
[402497217,1768687852202,-500.0,0.00016438,3]
[402497219,1768687852212,-500.0,0.00016438,3]
[402497221,1768687852223,-500.0,0.00016438,3]
[402497223,1768687852233,-500.0,0.00016438,3]
[402497225,1768687852243,-500.0,0.00016438,3]
[402497227,1768687852256,-500.0,0.00016438,3]
[402497229,1768687852267,-571.79,0.00016438,3]
[402497264,1768687852583,-500.0,0.00016438,3]
[402497266,1768687852596,-500.0,0.00016438,3]
[402497268,1768687852606,-516.14,0.00016438,3]
[402497271,1768687852617,-500.0,0.00016438,3]
[402497273,1768687852627,-500.0,0.00016438,3]
[402497274,1768687852637,-500.0,0.00016438,3]
[402497276,1768687852647,-500.0,0.00016438,3]
[402497279,1768687852658,-500.0,0.00016438,3]
[402497280,1768687852669,-500.0,0.00016438,3]
[402497282,1768687852679,-500.0,0.00016438,3]
[402497284,1768687852689,-913.02,0.00016438,3]
[402497286,1768687852700,-500.0,0.00016438,3]
[402497288,1768687852710,-1192.22,0.00016438,3]
[402497290,1768687852720,-500.0,0.00016438,3]
[402497292,1768687852729,-332.91217118,0.00016438,3]
[402497294,1768687852739,-897.74,0.00016438,3]
[402497296,1768687852749,-938.59,0.00016438,3]
[402497298,1768687852759,-632.04690666,0.00016438,3]
[402497299,1768687852768,-500.0,0.00016438,3]
[402497301,1768687852778,-500.0,0.00016438,3]
[402497303,1768687852787,-1031.93,0.00016438,3]
[402497305,1768687852797,-500.0,0.00016438,3]
[402497307,1768687852807,-1042.34,0.00016438,3]
[402497309,1768687852816,-500.0,0.00016438,3]
[402497311,1768687852826,-666.3,0.00016438,3]
[402497313,1768687852835,-500.0,0.00016438,3]
[402497315,1768687852845,-606.31,0.00016438,3]
[402497317,1768687852854,-309.96810054,0.00016438,3]
[402497319,1768687852864,-500.0,0.00016438,3]
[402497321,1768687852874,-500.0,0.00016438,3]
[402497323,1768687852884,-500.0,0.00016438,3]
[402497325,1768687852894,-543.17,0.00016438,3]
[402497327,1768687852904,-500.0,0.00016438,3]
[402497329,1768687852914,-500.0,0.00016438,3]
[402497331,1768687852924,-479.17924292,0.00016438,2]
[402497333,1768687852934,-500.0,0.00016438,3]
[402497335,1768687852944,-500.0,0.00016438,3]
[402497337,1768687852953,-202.85755538,0.00016438,3]
[402497339,1768687852963,-500.0,0.00016438,3]
[402497341,1768687852972,-500.0,0.00016438,3]
[402497343,1768687852982,-956.48,0.00016438,3]
[402497345,1768687852993,-501.82,0.00016438,3]
[402497347,1768687853003,-500.0,0.00016438,3]
[402497349,1768687853012,-500.0,0.00016438,3]
[402497351,1768687853027,-500.0,0.00016438,3]
[402497353,1768687853038,-423.66716387,0.00016438,3]
[402497355,1768687853047,-500.0,0.00016438,3]
[402497357,1768687853058,-500.0,0.00016438,3]
[402497359,1768687853068,-500.0,0.00016438,3]
[402497361,1768687853078,-1162.08,0.00016438,3]
[402497363,1768687853088,-869.48,0.00016438,3]
[402497365,1768687853099,-500.0,0.00016438,3]
[402497367,1768687853116,-620.38,0.00016438,3]
[402497369,1768687853126,-2290.58,0.00016438,3]
[402497371,1768687853138,-467.49360859,0.00016438,3]
[402497373,1768687853149,-500.0,0.00016438,3]
[402497375,1768687853160,-744.84,0.00016438,3]
[402497377,1768687853170,-500.0,0.00016438,3]
[402497379,1768687853180,-501.47481174,0.00016438,3]
[402497381,1768687853190,-990.52,0.00016438,3]
[402497383,1768687853200,-500.0,0.00016438,3]
[402497385,1768687853211,-500.0,0.00016438,3]
[402497387,1768687853221,-716.77,0.00016438,3]
[402497389,1768687853232,-500.0,0.00016438,3]
[402497391,1768687853243,-1122.48,0.00016438,3]
[402497393,1768687853255,-500.0,0.00016438,3]
[402497395,1768687853265,-500.0,0.00016438,3]
[402497397,1768687853276,-500.0,0.00016438,3]
[402497399,1768687853287,-500.0,0.00016438,3]
[402497401,1768687853298,-500.0,0.00016438,3]
[402497403,1768687853309,-500.0,0.00016438,3]
[402497405,1768687853319,-500.0,0.00016438,3]
[402497406,1768687853330,-1325.56,0.00016438,3]
[402497409,1768687853341,-362.08497691,0.00016438,3]
[402497410,1768687853351,-500.0,0.00016438,3]
[402497413,1768687853361,-500.0,0.00016438,3]
[402497415,1768687853372,-598.9,0.00016438,3]
[402497417,1768687853382,-500.0,0.00016438,3]
[402497418,1768687853392,-655.07,0.00016438,3]
[402497420,1768687853403,-500.0,0.00016438,3]
[402497422,1768687853414,-500.0,0.00016438,3]
[402497424,1768687853424,-11282.1,0.00016438,3]
[402497426,1768687853435,-500.0,0.00016438,3]
[402497428,1768687853445,-500.0,0.00016438,3]
[402497430,1768687853456,-500.0,0.00016438,3]
[402497432,1768687853466,-500.0,0.00016438,3]
[402497434,1768687853476,-500.0,0.00016438,3]
[402497436,1768687853486,-500.0,0.00016438,3]
[402497438,1768687853497,-824.54,0.00016438,3]
[402497440,1768687853507,-1021.5,0.00016438,3]
[402497442,1768687853518,-200.53732028,0.00016438,3]
[402497444,1768687853532,-1079.67,0.00016438,3]
[402497446,1768687853543,-500.0,0.00016438,3]
[402497448,1768687853553,-500.0,0.00016438,3]
[402497450,1768687853563,-719.38,0.00016438,3]
[402497452,1768687853573,-500.0,0.00016438,3]
[402497454,1768687853584,-500.0,0.00016438,3]
[402497456,1768687853594,-500.0,0.00016438,3]
[402497458,1768687853603,-500.0,0.00016438,3]
[402497460,1768687853614,-507.95,0.00016438,3]
[402497462,1768687853624,-696.31,0.00016438,3]
[402497465,1768687853635,-500.0,0.00016438,3]
[402497466,1768687853645,-500.0,0.00016438,3]
[402497468,1768687853656,-565.41,0.00016438,3]
[402497470,1768687853665,-665.4,0.00016438,3]
[402497472,1768687853675,-500.0,0.00016438,3]
[402497474,1768687853685,-1098.28,0.00016438,3]
[402497476,1768687853695,-500.0,0.00016438,3]
[402497478,1768687853705,-500.0,0.00016438,3]
[402497480,1768687853714,-500.0,0.00016438,3]
[402497482,1768687853724,-500.0,0.00016438,3]
[402497484,1768687853734,-852.82,0.00016438,3]
[402497486,1768687853743,-500.0,0.00016438,3]
[402497488,1768687853754,-506.62,0.00016438,3]
[402497490,1768687853764,-512.33,0.00016438,3]
[402497492,1768687853774,-500.0,0.00016438,3]
[402497494,1768687853783,-500.0,0.00016438,3]
[402497496,1768687853793,-500.0,0.00016438,3]
[402497498,1768687853803,-500.0,0.00016438,3]
[402497500,1768687853813,-500.0,0.00016438,3]
[402497502,1768687853823,-500.0,0.00016438,3]
[402497504,1768687853832,-507.59,0.00016438,3]
[402497506,1768687853842,-500.0,0.00016438,3]
[402497507,1768687853852,-500.0,0.00016438,3]
[402497510,1768687853864,-500.0,0.00016438,3]
[402497512,1768687853874,-500.0,0.00016438,3]
[402497514,1768687853886,-888.49,0.00016438,3]
[402497516,1768687853895,-500.0,0.00016438,3]
[402497517,1768687853905,-500.0,0.00016438,3]
[402497520,1768687853915,-893.97,0.00016438,3]
[402497522,1768687853926,-664.25,0.00016438,3]
[402497524,1768687853936,-500.0,0.00016438,3]
[402497526,1768687853946,-500.0,0.00016438,3]
[402497528,1768687853956,-715.41,0.00016438,3]
[402497530,1768687853966,-500.0,0.00016438,3]
[402497532,1768687853976,-500.0,0.00016438,3]